bitfinex/quotes_BTCUSD_20240908
["timestamp","ask_amount","ask_price","bid_price","bid_amount"]
[1725830497547,1.93501,54725.0,54724.0,0.00163]
[1725830497785,1.93501,54725.0,54724.0,0.00263]
[1725830497786,1.93801,54725.0,54724.0,0.00263]
[1725830497994,1.94201,54725.0,54724.0,0.00263]
[1725830498418,1.94501,54725.0,54724.0,0.00263]
[1725830498648,1.94201,54725.0,54724.0,0.00263]
[1725830499095,1.94201,54725.0,54724.0,0.00163]
[1725830499096,2.10250844,54725.0,54724.0,0.00163]
[1725830499312,2.13117167,54725.0,54724.0,0.00163]
[1725830499534,1.97167323,54725.0,54724.0,0.00163]
[1725830499959,1.96667323,54725.0,54724.0,0.00163]
[1725830500169,1.96467323,54725.0,54724.0,0.00163]
[1725830500375,2.13717167,54725.0,54724.0,0.00163]
[1725830500821,2.13717167,54725.0,54719.0,0.00163]
[1725830500822,0.156198,54720.0,54719.0,0.00163]
[1725830501088,0.50099927,54720.0,54719.0,0.00163]
[1725830501727,0.58079927,54720.0,54719.0,0.00163]
[1725830501930,0.58779927,54720.0,54719.0,0.00163]
[1725830502147,1.75938727,54720.0,54719.0,0.00163]
[1725830502363,1.75238727,54720.0,54719.0,0.00163]
[1725830502597,2.06526669,54720.0,54719.0,0.00163]
[1725830502817,2.06326669,54720.0,54719.0,0.00163]
[1725830503079,1.926426,54720.0,54719.0,0.00163]
[1725830503463,2.06324306,54720.0,54719.0,0.00163]
[1725830503670,2.06824306,54720.0,54719.0,0.00163]
[1725830503875,1.88720433,54720.0,54719.0,0.00163]
[1725830504086,1.89520433,54720.0,54719.0,0.00163]
[1725830504291,1.76038727,54720.0,54719.0,0.00163]
[1725830504521,1.76638727,54720.0,54719.0,0.00163]
[1725830505820,2.07879998,54720.0,54719.0,0.00163]
[1725830506049,2.26378305,54720.0,54719.0,0.00163]
[1725830506959,2.28074298,54720.0,54719.0,0.00163]
[1725830507404,1.142701,54714.0,54713.0,0.00163]
[1725830507600,1.43522619,54714.0,54713.0,0.00163]
[1725830508034,1.43322619,54714.0,54713.0,0.00163]
[1725830508236,1.46189355,54714.0,54713.0,0.00163]
[1725830509416,1.46489355,54714.0,54713.0,0.00163]
[1725830510297,1.46389355,54714.0,54713.0,0.00163]
[1725830510576,1.56683513,54714.0,54713.0,0.00163]
[1725830510780,1.58083513,54714.0,54713.0,0.00263]
[1725830510993,1.66284849,54714.0,54713.0,0.00263]
[1725830511429,1.87326413,54714.0,54713.0,0.00263]
[1725830511631,1.95527749,54714.0,54713.0,0.00263]
[1725830512052,1.94127749,54714.0,54713.0,0.00163]
[1725830512264,1.96568266,54714.0,54713.0,0.00163]
[1725830512495,2.10237159,54714.0,54713.0,0.00163]
[1725830512748,1.96568266,54714.0,54713.0,0.00163]
[1725830512963,2.11035526,54714.0,54713.0,0.00163]
[1725830513192,1.354057,54713.0,54712.0,0.00163]
[1725830513404,1.7884586,54713.0,54712.0,0.00163]
[1725830513611,1.9251312,54713.0,54712.0,0.00163]
[1725830513829,1.7884586,54713.0,54712.0,0.00163]
[1725830514478,1.7954586,54713.0,54712.0,0.00163]
[1725830514708,2.0878936,54713.0,54712.0,0.00163]
[1725830514945,2.13677907,54713.0,54712.0,0.00122332]
[1725830515851,2.13577907,54713.0,54712.0,0.00122332]
[1725830516052,2.14377907,54713.0,54712.0,0.00122332]
[1725830516473,2.03536054,54713.0,54712.0,0.00122332]
[1725830517103,2.03736054,54713.0,54712.0,0.00122332]
[1725830517772,2.11946054,54713.0,54712.0,0.00122332]
[1725830517980,1.4606357,54709.0,54697.0,0.141]
[1725830518187,1.6657357,54709.0,54695.0,0.0656]
[1725830518374,1.71462117,54709.0,54695.0,0.0656]
[1725830518611,2.00707717,54709.0,54695.0,0.0656]
[1725830519268,1.033837,54696.0,54695.0,0.0656]
[1725830519495,1.2463207,54696.0,54695.0,0.0656]
[1725830519704,1.025876,54694.0,54693.0,0.1411]
[1725830519914,1.148876,54694.0,54693.0,0.1411]
[1725830520145,1.156876,54694.0,54693.0,0.0656]
[1725830520361,1.158876,54694.0,54693.0,0.0656]
[1725830520546,1.31076347,54694.0,54693.0,0.0656]
[1725830521087,0.58342347,54694.0,54689.0,0.00163]
[1725830521297,1.023953,54690.0,54689.0,0.00163]
[1725830521534,1.123953,54690.0,54689.0,0.00163]
[1725830521747,1.146953,54690.0,54689.0,0.00163]
[1725830523017,1.156953,54690.0,54689.0,0.00163]
[1725830523236,1.156953,54690.0,54686.0,0.09426]
[1725830523237,1.024009,54687.0,54686.0,0.09426]
[1725830523441,1.2344927,54687.0,54686.0,0.09426]
[1725830523862,1.2344927,54687.0,54686.0,0.0656]
[1725830524078,0.146321,54674.0,54670.0,0.14633]
[1725830524289,0.146324,54673.0,54667.0,0.29268]
[1725830524498,0.146324,54673.0,54671.0,0.01197583]
[1725830524712,0.146324,54673.0,54672.0,0.0656]
[1725830524919,0.146324,54673.0,54672.0,0.07757008]
[1725830525325,0.438973,54673.0,54672.0,0.07757008]
[1725830525799,0.438973,54673.0,54672.0,0.0656]
[1725830526004,0.731622,54673.0,54672.0,0.07757008]
[1725830526215,0.731622,54673.0,54672.0,0.141]
[1725830526699,1.13056471,54673.0,54672.0,0.141]
[1725830526913,1.23056471,54673.0,54672.0,0.141]
[1725830527121,1.25356471,54673.0,54672.0,0.141]
[1725830527351,1.25456471,54673.0,54672.0,0.141]
[1725830527860,0.731675,54669.0,54668.0,0.0754]
[1725830528074,1.2118287,54669.0,54668.0,0.0754]
[1725830528292,1.2118287,54669.0,54664.0,0.00164]
[1725830528293,0.731727,54665.0,54664.0,0.07704]
[1725830528538,0.731727,54665.0,54664.0,0.14264]
[1725830528709,0.87821507,54665.0,54664.0,0.14264]
[1725830529272,1.28090607,54665.0,54664.0,0.06724]
[1725830529490,1.32979154,54665.0,54664.0,0.00164]
[1725830529892,1.41727524,54665.0,54664.0,0.00164]
[1725830530238,1.42027524,54665.0,54664.0,0.00164]
[1725830530648,1.41927524,54665.0,54664.0,0.00164]
[1725830530848,1.71296624,54665.0,54664.0,0.00164]
[1725830531054,1.71496624,54665.0,54664.0,0.00164]
[1725830531254,1.71596624,54665.0,54664.0,0.00164]
[1725830531663,1.71496624,54665.0,54664.0,0.00164]
[1725830532263,1.76006624,54665.0,54664.0,0.00164]
[1725830532477,1.84046624,54665.0,54664.0,0.00164]
[1725830532694,2.13015724,54665.0,54664.0,0.00164]
[1725830532902,2.13015724,54665.0,54664.0,1e-06]
[1725830533111,2.13015724,54665.0,54658.0,0.00164]
[1725830533112,1.349253,54659.0,54658.0,0.00164]
[1725830533581,1.800162,54659.0,54658.0,0.00164]
[1725830533584,2.14177047,54659.0,54658.0,0.00164]
[1725830533811,0.01,54641.0,54636.0,0.141]
[1725830534027,0.292797,54646.0,54636.0,0.141]
[1725830534028,0.8195857,54637.0,54636.0,0.141]
[1725830534248,0.9425857,54637.0,54636.0,0.0656]
[1725830534464,0.732157,54633.0,54632.0,0.141]
[1725830534720,0.9196407,54633.0,54632.0,0.141]
[1725830534932,0.99694283,54633.0,54632.0,0.141]
[1725830536033,0.99694283,54633.0,54632.0,0.0656]
[1725830536258,1.07409304,54633.0,54632.0,0.0656]
[1725830536483,1.1612386,54633.0,54632.0,0.0656]
[1725830536905,0.439318,54630.0,54629.0,0.0754]
[1725830537122,0.439318,54630.0,54617.0,0.294585]
[1725830537123,0.146454,54625.0,54624.0,0.0656]
[1725830537342,0.2133891,54625.0,54624.0,0.0656]
[1725830537559,0.63500436,54625.0,54624.0,0.0656]
[1725830538510,0.63500436,54625.0,54598.0,0.16463391]
[1725830538511,0.19564436,54625.0,54598.0,0.16463391]
[1725830538751,0.146484,54614.0,54607.0,0.1465]
[1725830538962,0.292956,54616.0,54606.0,0.293004]
[1725830539200,0.146484,54614.0,54608.0,0.146496]
[1725830539432,0.1,54615.0,54606.0,0.293004]
[1725830539638,0.0392956,54614.0,54611.0,0.146489]
[1725830539848,0.1,54615.0,54606.0,0.586008]
[1725830540055,0.001,54614.0,54610.0,0.146492]
[1725830540279,0.001,54614.0,54603.0,0.29466]
[1725830540280,0.146489,54612.0,54603.0,0.29466]
[1725830540463,0.1,54611.0,54603.0,0.29466]
[1725830540701,0.1,54611.0,54605.0,0.146504]
[1725830540909,0.1,54611.0,54607.0,0.1465]
[1725830541338,0.1,54611.0,54610.0,0.1488]
[1725830541562,0.1393961,54611.0,54610.0,0.1488]
[1725830541777,0.1393961,54611.0,54603.0,0.29466]
[1725830541778,0.146493,54610.0,54603.0,0.06744]
[1725830541990,0.246493,54610.0,54603.0,0.06744]
[1725830542428,0.88418359,54610.0,54603.0,0.06744]
[1725830542637,0.99400495,54610.0,54603.0,0.06744]
[1725830543273,0.99700495,54610.0,54603.0,0.06744]
[1725830543427,0.99400495,54610.0,54603.0,0.06744]
[1725830543852,0.99700495,54610.0,54603.0,0.06744]
[1725830544033,0.38503295,54610.0,54603.0,0.06744]
[1725830544232,0.12871859,54610.0,54609.0,0.08464]
[1725830544434,0.12871859,54610.0,54609.0,0.15044]
[1725830544654,0.02871859,54610.0,54609.0,0.15044]
[1725830545297,0.03071859,54610.0,54609.0,0.15044]
[1725830545522,0.05843925,54610.0,54609.0,0.15044]
[1725830545730,0.05643925,54610.0,54609.0,0.15044]
[1725830545936,0.05743925,54610.0,54609.0,0.15044]
[1725830546156,0.05843925,54610.0,54609.0,0.15044]
[1725830546360,0.05743925,54610.0,54609.0,0.15044]
[1725830547064,0.02871859,54610.0,54609.0,0.15044]
[1725830547263,0.02971859,54610.0,54609.0,0.15044]
[1725830547576,0.12971859,54610.0,54609.0,0.15044]
[1725830548346,0.13071859,54610.0,54609.0,0.15044]
[1725830548854,0.27621159,54610.0,54609.0,0.15044]
[1725830549061,0.33213045,54610.0,54609.0,0.15044]
[1725830549270,0.33313045,54610.0,54609.0,0.15044]
[1725830549535,0.33413045,54610.0,54609.0,0.15044]
[1725830549734,0.33313045,54610.0,54609.0,0.15044]
[1725830549966,0.18663745,54610.0,54609.0,0.15044]
[1725830550088,0.08763745,54610.0,54609.0,0.15044]
[1725830550957,0.52611645,54610.0,54609.0,0.15044]
[1725830551159,0.62611645,54610.0,54609.0,0.15044]
[1725830551369,0.62511645,54610.0,54609.0,0.15044]
[1725830551778,0.91910245,54610.0,54609.0,0.00164]
[1725830552188,1.46402449,54610.0,54609.0,0.00164]
[1725830552400,1.46402449,54610.0,54600.0,0.0661]
[1725830552401,0.146517,54601.0,54600.0,0.06538]
[1725830552628,0.4835045,54601.0,54600.0,0.06538]
[1725830552848,0.5835045,54601.0,54600.0,0.06538]
[1725830553066,0.28568362,54601.0,54600.0,0.06538]
[1725830553375,0.87175162,54601.0,54600.0,0.06538]
[1725830553607,0.87275162,54601.0,54600.0,0.06538]
[1725830554239,1.00579197,54601.0,54600.0,0.06538]
[1725830554445,1.00579197,54601.0,54600.0,0.06138]
[1725830555517,1.46245988,54601.0,54600.0,0.06138]
[1725830556304,1.46445988,54601.0,54600.0,0.06138]
[1725830557335,0.439591,54596.0,54595.0,0.0829]
[1725830557551,0.5128545,54596.0,54595.0,0.149]
[1725830558540,0.5128545,54596.0,54595.0,0.145]
[1725830559197,0.14653,54596.0,54595.0,0.145]
[1725830559403,0.14753,54596.0,54595.0,0.145]
[1725830559823,0.14853,54596.0,54595.0,0.145]
[1725830560269,0.441591,54596.0,54595.0,0.145]
[1725830560478,0.14853,54596.0,54595.0,0.145]
[1725830561391,0.002,54596.0,54595.0,0.291533]
[1725830561832,0.002,54596.0,54595.0,0.5846]
[1725830562265,0.000817,54601.0,54597.0,0.0664]
[1725830562475,0.000817,54601.0,54600.0,0.0664]
[1725830562695,0.000817,54601.0,54600.0,0.0654]
[1725830563364,0.000817,54601.0,54600.0,0.58586]
[1725830563588,0.02872198,54604.0,54592.0,0.0108719]
[1725830563589,0.02872198,54604.0,54603.0,0.156512]
[1725830563830,0.146446,54628.0,54623.0,0.146456]
[1725830564272,0.146438,54631.0,54625.0,0.146451]
[1725830564291,0.01686776,54635.0,54623.0,0.292916]
[1725830564292,0.146433,54633.0,54626.0,0.146449]
[1725830564524,0.292859,54634.0,54622.0,0.0809]
[1725830564757,0.292859,54634.0,54622.0,0.227359]
[1725830564980,0.146444,54629.0,54622.0,0.227359]
[1725830565207,0.1,54628.0,54622.0,0.227359]
[1725830565675,0.246445,54628.0,54623.0,0.0664]
[1725830565917,0.3003765,54628.0,54623.0,0.0664]
[1725830566167,0.146448,54627.0,54623.0,0.0664]
[1725830566408,0.1,54626.0,54623.0,0.0674]
[1725830566949,0.1,54626.0,54623.0,0.0664]
[1725830567434,0.1,54626.0,54623.0,0.0744]
[1725830567681,0.27658995,54626.0,54623.0,0.0664]
[1725830567931,0.146454,54625.0,54623.0,0.0664]
[1725830568137,0.1,54624.0,54623.0,0.0664]
[1725830568362,0.1,54624.0,54623.0,0.0714]
[1725830568826,0.1,54624.0,54623.0,0.0664]
[1725830569047,0.1,54624.0,54623.0,0.0754]
[1725830569556,0.1,54624.0,54623.0,0.0764]
[1725830569791,0.16412663,54624.0,54623.0,0.0664]
[1725830570031,0.89740363,54624.0,54623.0,0.01]
[1725830570274,1.09131463,54624.0,54623.0,0.022]
[1725830570485,1.49422563,54624.0,54623.0,0.022]
[1725830570697,1.51722563,54624.0,54623.0,0.022]
[1725830570923,1.51622563,54624.0,54623.0,0.01]
[1725830571369,1.51622563,54624.0,54623.0,0.012]
[1725830572081,1.51722563,54624.0,54623.0,0.017]
[1725830572725,1.51622563,54624.0,54623.0,0.005]
[1725830573224,1.51622563,54624.0,54604.0,0.001634]
[1725830573225,0.292943,54618.0,54604.0,0.001634]
[1725830573466,0.439512,54606.0,54605.0,0.55430836]
[1725830573681,0.439519,54605.0,54604.0,0.001634]
[1725830573887,1.125545,54605.0,54604.0,0.001634]
[1725830575871,1.128545,54605.0,54604.0,0.001634]
[1725830576102,1.27749491,54605.0,54604.0,0.001634]
[1725830576334,1.28249491,54605.0,54604.0,0.001634]
[1725830577009,1.27749491,54605.0,54604.0,0.001634]
[1725830577275,1.27449491,54605.0,54604.0,0.001634]
[1725830577505,1.27749491,54605.0,54604.0,0.001634]
[1725830577968,1.66990791,54605.0,54604.0,0.001634]
[1725830578838,1.73434662,54605.0,54604.0,0.001634]
[1725830579039,1.76156598,54605.0,54604.0,0.001634]
[1725830579245,1.88022355,54605.0,54604.0,0.001634]
[1725830579460,1.86722355,54605.0,54604.0,0.001634]
[1725830579701,1.87286148,54605.0,54604.0,0.001634]
[1725830579918,1.87786148,54605.0,54604.0,0.001634]
[1725830580131,1.88486148,54605.0,54604.0,0.001634]
[1725830580344,2.3408657,54605.0,54604.0,0.001634]
[1725830580773,2.3358657,54605.0,54604.0,0.001634]
[1725830581012,2.34219872,54605.0,54604.0,0.001634]
[1725830581456,2.21422195,54605.0,54604.0,0.001634]
[1725830581659,2.35120788,54605.0,54604.0,0.001634]
[1725830582085,2.34220788,54605.0,54604.0,0.001634]
[1725830582312,2.21022195,54605.0,54604.0,0.001634]
[1725830582541,2.21922195,54605.0,54592.0,0.0108719]
[1725830582754,2.21922195,54605.0,54567.0,0.55430836]
[1725830582755,1.036203,54570.0,54567.0,0.55430836]
[1725830582972,1.2730728,54570.0,54567.0,0.55430836]
[1725830583226,1.42963706,54570.0,54567.0,0.55430836]
[1725830583471,1.32957894,54570.0,54569.0,0.00984708]
[1725830583683,1.32957894,54570.0,54569.0,0.00164]
[1725830583899,1.35257894,54570.0,54569.0,0.00164]
[1725830584331,1.36257894,54570.0,54569.0,0.00164]
[1725830584564,1.37257894,54570.0,54569.0,0.00164]
[1725830585874,1.37957894,54570.0,54569.0,0.00164]
[1725830586211,1.38057894,54570.0,54569.0,0.00164]
[1725830586417,1.38657894,54570.0,54569.0,0.00164]
[1725830586624,1.37257894,54570.0,54569.0,0.00164]
[1725830587042,1.68177994,54570.0,54569.0,0.00164]
[1725830587267,1.38857894,54570.0,54569.0,0.00164]
[1725830587526,1.73371144,54570.0,54569.0,0.00164]
[1725830587739,1.81331144,54570.0,54569.0,0.00164]
[1725830588170,1.80531144,54570.0,54569.0,0.00164]
[1725830588390,1.40354992,54570.0,54569.0,0.00164]
[1725830588637,1.38354992,54570.0,54569.0,0.00164]
[1725830588860,1.37754992,54570.0,54569.0,0.00164]
[1725830589284,1.04837794,54570.0,54569.0,0.06474]
[1725830589501,0.58254303,54570.0,54569.0,0.14064]
[1725830589732,0.847002,54570.0,54569.0,0.14064]
[1725830590351,0.856002,54570.0,54569.0,0.14064]
[1725830590561,0.847002,54570.0,54569.0,0.14064]
[1725830590998,0.95316559,54570.0,54569.0,0.14064]
[1725830591217,0.93916559,54570.0,54569.0,0.14064]
[1725830591437,0.94616559,54570.0,54569.0,0.14064]
[1725830591880,0.93916559,54570.0,54569.0,0.14064]
[1725830592572,0.64596459,54570.0,54569.0,0.14064]
[1725830592805,0.93416559,54570.0,54569.0,0.14064]
[1725830593021,0.93716559,54570.0,54569.0,0.14064]
[1725830593230,0.840002,54570.0,54569.0,0.14064]
[1725830593438,0.836002,54570.0,54569.0,0.14064]
[1725830593887,0.839002,54570.0,54569.0,0.14064]
[1725830594307,0.836002,54570.0,54569.0,0.14064]
[1725830594753,0.547801,54570.0,54569.0,0.14064]
[1725830595215,0.836002,54570.0,54569.0,0.14064]
[1725830595417,0.833002,54570.0,54569.0,0.00164]
[1725830595636,0.833002,54570.0,54569.0,4.00164]
[1725830595843,0.839002,54570.0,54569.0,4.00164]
[1725830596048,0.837002,54570.0,54569.0,4.0099671]
[1725830596264,0.833002,54570.0,54569.0,4.0099671]
[1725830597135,0.539801,54570.0,54569.0,4.0099671]
[1725830597568,0.2466,54570.0,54569.0,4.0099671]
[1725830598004,0.2466,54570.0,54569.0,4.1489671]
[1725830598638,0.1,54570.0,54569.0,4.1489671]
[1725830598947,0.02873969,54573.0,54570.0,0.0752]
[1725830599172,0.146582,54577.0,54573.0,0.146591]
[1725830599401,0.146582,54577.0,54574.0,0.0622]
[1725830599634,0.146582,54577.0,54574.0,0.07048194]
[1725830600534,0.1,54576.0,54574.0,0.07048194]
[1725830601620,0.246584,54576.0,54574.0,0.07348194]
[1725830601825,0.1,54576.0,54574.0,0.07348194]
[1725830602043,0.102,54577.0,54575.0,0.0762]
[1725830602253,0.101,54577.0,54575.0,0.0762]
[1725830602466,0.101,54577.0,54576.0,0.00726445]
[1725830602915,0.101,54577.0,54576.0,0.00626445]
[1725830603123,0.1,54577.0,54576.0,0.00626445]
[1725830603377,0.101,54577.0,54575.0,0.0802]
[1725830603575,0.102,54577.0,54575.0,0.0822]
[1725830603995,0.102,54577.0,54575.0,0.228786]
[1725830604217,0.002,54577.0,54575.0,0.228786]
[1725830604633,0.246576,54579.0,54575.0,0.222786]
[1725830604850,0.001,54577.0,54576.0,0.004]
[1725830605086,0.102,54577.0,54576.0,0.004]
[1725830605339,0.1,54577.0,54575.0,0.222786]
[1725830605561,0.101,54577.0,54575.0,0.223786]
[1725830605776,0.102,54577.0,54575.0,0.230786]
[1725830606008,0.101,54577.0,54575.0,0.229786]
[1725830606234,0.1,54576.0,54575.0,0.0832]
[1725830606453,0.002,54577.0,54575.0,0.0832]
[1725830606683,0.001,54577.0,54575.0,0.0832]
[1725830607114,0.001,54577.0,54576.0,0.146584]
[1725830607335,0.001,54577.0,54576.0,0.579153]
[1725830607559,0.02819404,54581.0,54576.0,0.579153]
[1725830607763,0.02819404,54581.0,54578.0,0.146579]
[1725830607983,0.02819404,54581.0,54578.0,0.144579]
[1725830607984,0.12819404,54581.0,54578.0,0.144579]
[1725830608197,0.27476504,54581.0,54577.0,0.146581]
[1725830608436,0.12819404,54581.0,54579.0,0.146574]
[1725830608656,0.12819404,54581.0,54579.0,0.145574]
[1725830609156,0.1,54580.0,54579.0,0.145574]
[1725830609374,0.02919404,54581.0,54580.0,1.166514]
[1725830609604,0.02819404,54581.0,54580.0,1.166514]
[1725830609835,0.02919404,54581.0,54580.0,1.166514]
[1725830610957,0.02819404,54581.0,54580.0,1.166514]
[1725830611165,0.02819404,54581.0,54580.0,1.2844654]
[1725830611377,0.02819404,54581.0,54580.0,1.2834654]
[1725830611804,0.02919404,54581.0,54580.0,1.2904654]
[1725830612267,0.02819404,54581.0,54580.0,1.2834654]
[1725830612474,0.02919404,54581.0,54580.0,1.3004654]
[1725830612908,0.02819404,54581.0,54580.0,1.2934654]
[1725830613127,0.02919404,54581.0,54580.0,1.3014654]
[1725830614219,0.001,54581.0,54580.0,1.3014654]
[1725830614444,0.1,54596.0,54592.0,0.1395]
[1725830614684,0.1,54596.0,54592.0,0.285041]
[1725830615145,0.1,54596.0,54592.0,0.284041]
[1725830615616,0.1,54596.0,54592.0,0.3467541]
[1725830615851,0.101,54596.0,54592.0,0.3547541]
[1725830616321,0.24753,54596.0,54592.0,0.3497541]
[1725830617304,0.293053,54598.0,54592.0,0.3497541]
[1725830617535,0.147531,54596.0,54593.0,0.06428441]
[1725830617966,0.148531,54596.0,54593.0,0.06428441]
[1725830618200,0.293048,54599.0,54592.0,0.284041]
[1725830618439,0.146531,54596.0,54592.0,0.292041]
[1725830619347,0.146531,54596.0,54592.0,0.1405]
[1725830619596,0.1,54595.0,54593.0,0.146538]
[1725830619803,0.246528,54597.0,54593.0,0.2042508]
[1725830620033,0.1,54597.0,54593.0,0.146538]
[1725830620255,0.146528,54597.0,54593.0,0.146538]
[1725830620699,0.101,54596.0,54593.0,0.154538]
[1725830620914,0.101,54596.0,54595.0,0.146533]
[1725830621355,0.1,54596.0,54595.0,0.146533]
[1725830621562,0.1,54596.0,54595.0,0.4983109]
[1725830621769,0.1,54596.0,54595.0,0.2659439]
[1725830621998,0.001,54596.0,54595.0,0.3409439]
[1725830622230,0.001,54597.0,54596.0,0.43959]
[1725830622470,0.001,54597.0,54596.0,0.53199769]
[1725830622672,0.001,54597.0,54595.0,0.2054109]
[1725830622897,0.146527,54598.0,54595.0,0.2054109]
[1725830623359,0.146522,54600.0,54595.0,0.2054109]
[1725830623567,0.293029,54602.0,54595.0,0.2054109]
[1725830623568,0.246522,54599.0,54595.0,0.3519439]
[1725830623782,0.246522,54599.0,54595.0,0.3409439]
[1725830623997,0.001,54597.0,54596.0,0.01]
[1725830624436,0.247337,54599.0,54595.0,0.3489439]
[1725830624682,0.247337,54599.0,54595.0,0.3509439]
[1725830624900,0.101815,54599.0,54596.0,0.14653]
[1725830625113,0.001815,54599.0,54596.0,0.14653]
[1725830625333,0.001,54597.0,54596.0,0.15753]
[1725830625547,0.101815,54599.0,54596.0,0.21183119]
[1725830625769,0.100815,54599.0,54596.0,0.21183119]
[1725830626244,0.101815,54599.0,54596.0,0.21983119]
[1725830626924,0.102815,54599.0,54596.0,0.21983119]
[1725830627143,0.102815,54599.0,54596.0,0.15453]
[1725830627360,0.101815,54599.0,54596.0,0.14653]
[1725830627591,0.101815,54599.0,54596.0,0.15653]
[1725830627817,0.146528,54597.0,54596.0,0.01]
[1725830628039,0.146533,54595.0,54592.0,0.0607]
[1725830628935,0.146533,54595.0,54578.0,0.002]
[1725830628936,0.146546,54590.0,54589.0,0.0607]
[1725830629167,0.146556,54587.0,54583.0,0.5371]
[1725830629393,0.146558,54586.0,54583.0,0.5371]
[1725830629887,0.293073,54594.0,54574.0,0.0607]
[1725830629888,0.146571,54581.0,54574.0,0.0607]
[1725830630094,0.439713,54581.0,54574.0,0.0607]
[1725830630327,0.439713,54581.0,54572.0,0.075]
[1725830630546,0.732855,54581.0,54571.0,0.146595]
[1725830630909,0.732855,54581.0,54570.0,0.0607]
[1725830631156,0.732855,54581.0,54580.0,0.00963]
[1725830631157,0.8439536,54581.0,54580.0,0.00963]
[1725830631321,0.732855,54581.0,54580.0,0.00163]
[1725830631935,0.797355,54581.0,54580.0,0.00163]
[1725830632179,0.897355,54581.0,54580.0,0.00263]
[1725830632625,0.897355,54581.0,54580.0,0.00163]
[1725830633262,1.04324022,54581.0,54580.0,0.00163]
[1725830633709,1.04324022,54581.0,54580.0,0.00463]
[1725830633930,1.04324022,54581.0,54580.0,0.00163]
[1725830634589,0.897355,54581.0,54580.0,0.00163]
[1725830635229,1.192497,54581.0,54580.0,0.00163]
[1725830636549,1.483639,54581.0,54580.0,0.00163]
[1725830636769,1.190497,54581.0,54580.0,0.00163]
[1725830636982,1.267497,54581.0,54580.0,0.00163]
[1725830637211,1.42925993,54581.0,54580.0,0.00163]
[1725830637711,1.42725993,54581.0,54580.0,0.00163]
[1725830638145,1.43425993,54581.0,54580.0,0.00263]
[1725830638574,1.42725993,54581.0,54580.0,0.00163]
[1725830638795,1.73140193,54581.0,54580.0,0.00263]
[1725830639005,1.43625993,54581.0,54580.0,0.00263]
[1725830639216,2.01226553,54581.0,54580.0,0.00109617]
[1725830639400,1.94451651,54581.0,54580.0,0.00109617]
[1725830639869,1.94402168,54581.0,54580.0,0.00109617]
[1725830640538,1.93502168,54581.0,54580.0,9.617e-05]
[1725830640765,1.77525875,54581.0,54580.0,9.617e-05]
[1725830640987,1.78225875,54581.0,54580.0,0.00109617]
[1725830641200,1.77225875,54581.0,54580.0,0.00109617]
[1725830641442,1.77425875,54581.0,54580.0,0.00109617]
[1725830641653,1.80725875,54581.0,54580.0,0.00109617]
[1725830641891,1.99224182,54581.0,54580.0,0.00109617]
[1725830642540,2.06575382,54581.0,54580.0,0.00109617]
[1725830642748,2.05575382,54581.0,54580.0,0.00109617]
[1725830642951,2.06575382,54581.0,54580.0,0.00109617]
[1725830643162,2.06575382,54581.0,54580.0,9.617e-05]
[1725830643163,2.05675382,54581.0,54580.0,9.617e-05]
[1725830643576,2.06575382,54581.0,54580.0,0.00109617]
[1725830646664,2.14380108,54581.0,54580.0,0.00109617]
[1725830646889,2.16380108,54581.0,54580.0,0.00109617]
[1725830647787,2.16180108,54581.0,54580.0,0.00109617]
[1725830648000,2.16380108,54581.0,54580.0,0.00109617]
[1725830649140,2.16461608,54581.0,54580.0,0.00046641]
[1725830649380,2.45775808,54581.0,54580.0,0.00046641]
[1725830649845,2.45775808,54581.0,54580.0,4.1e-07]
[1725830650064,2.62205433,54581.0,54580.0,4.1e-07]
[1725830650280,1.764505,54570.0,54569.0,4.00164]
[1725830650519,2.02690928,54570.0,54569.0,4.00164]
[1725830650720,2.27308574,54570.0,54569.0,4.00164]
[1725830651220,2.30182644,54570.0,54569.0,4.00164]
[1725830651430,2.4387281,54570.0,54569.0,3.966989]
[1725830651682,2.56261066,54570.0,54569.0,3.24611547]
[1725830651890,2.56261066,54570.0,54569.0,3.05655945]
[1725830652099,2.70963027,54570.0,54569.0,3.05655945]
[1725830652309,2.70963027,54570.0,54569.0,3.05124845]
[1725830652539,2.70963027,54570.0,54569.0,3.02917845]
[1725830653013,2.72363027,54570.0,54569.0,2.84192345]
[1725830653227,2.73763027,54570.0,54569.0,2.31923331]
[1725830653433,2.86043159,54570.0,54569.0,2.31923331]
[1725830653643,2.86043159,54570.0,54569.0,2.30923331]
[1725830653819,2.87443159,54570.0,54569.0,2.16262931]
[1725830654061,2.86043159,54570.0,54569.0,2.11877831]
[1725830654297,2.70963027,54570.0,54569.0,2.11877831]
[1725830654542,2.73763027,54570.0,54569.0,2.11877831]
[1725830654758,2.73763027,54570.0,54569.0,1.66773706]
[1725830654971,2.73763027,54570.0,54569.0,1.55778406]
[1725830654972,2.72363027,54570.0,54569.0,1.55778406]
[1725830655184,2.72363027,54570.0,54569.0,1.52113306]
[1725830655396,2.84698157,54570.0,54569.0,1.52113306]
[1725830655637,2.73763027,54570.0,54569.0,1.52113306]
[1725830655855,2.72363027,54570.0,54569.0,1.15599878]
[1725830656039,2.70963027,54570.0,54569.0,1.12681878]
[1725830656271,2.72363027,54570.0,54569.0,1.12681878]
[1725830656483,2.74085197,54570.0,54569.0,1.11971878]
[1725830656727,2.74085197,54570.0,54569.0,1.08306778]
[1725830657006,2.74085197,54570.0,54569.0,0.92193478]
[1725830657232,2.74085197,54570.0,54569.0,0.88528378]
[1725830657421,2.72685197,54570.0,54569.0,0.88528378]
[1725830657674,2.74085197,54570.0,54569.0,0.88528378]
[1725830657897,2.74085197,54570.0,54569.0,0.84863278]
[1725830658123,2.74085197,54570.0,54569.0,0.39678734]
[1725830658339,2.59383236,54570.0,54569.0,0.30778734]
[1725830658567,2.63060236,54570.0,54569.0,0.15296699]
[1725830658996,1.036543,54552.0,54540.0,0.0804]
[1725830659232,1.20408633,54552.0,54540.0,0.0804]
[1725830659425,1.20408633,54552.0,54551.0,0.00822078]